bitfinex/quotes_ETHUSD_20220311
["timestamp","ask_amount","ask_price","bid_price","bid_amount"]
[1647003163335,0.00290109,2653.2,2652.6,1.8846]
[1647003163632,0.05746687,2653.2,2652.6,1.8846]
[1647003164132,0.05746687,2653.2,2652.6,2.86119842]
[1647003164332,1.55496049,2653.1,2652.6,3.42660802]
[1647003164533,0.00326506,2653.0,2652.6,3.42660802]
[1647003164734,0.00326506,2653.0,2652.6,2.86119842]
[1647003165336,0.00326506,2653.0,2652.8,0.5653562]
[1647003165569,0.06248054,2653.5,2652.8,1.88427]
[1647003165769,0.00098415,2652.9,2652.8,2.18427]
[1647003166579,0.05592635,2653.3,2652.8,2.18427]
[1647003166776,0.05664066,2653.5,2653.1,0.94216]
[1647003167078,1.87014527,2653.8,2653.1,0.94216]
[1647003167079,0.05893126,2653.3,2653.1,0.94216]
[1647003167280,0.06089807,2653.7,2653.1,0.94216]
[1647003167481,1.55476085,2653.6,2653.1,0.94216]
[1647003167680,1.55476085,2653.5,2653.1,0.94216]
[1647003167880,1.6107789,2653.4,2653.1,0.94216]
[1647003168080,0.05601805,2653.4,2653.1,0.94216]
[1647003168282,0.00098415,2653.5,2653.1,1.507432]
[1647003168490,0.00630972,2653.5,2653.2,0.94209]
[1647003168888,0.00630972,2653.5,2653.2,1.24209]
[1647003169093,0.00532557,2653.5,2653.2,1.24209]
[1647003169355,0.00859063,2653.5,2653.2,1.24209]
[1647003169557,0.00859063,2653.5,2653.1,0.52578062]
[1647003169956,0.15947363,2653.5,2653.1,0.52578062]
[1647003170157,0.00859063,2653.5,2653.1,0.52578062]
[1647003170357,1.55475162,2653.4,2653.1,0.52578062]
[1647003170557,1.6173708,2653.4,2653.1,0.52578062]
[1647003170755,0.06261918,2653.4,2652.8,0.5653279]
[1647003170960,0.00326506,2653.4,2652.8,0.5653279]
[1647003171156,0.00326506,2653.4,2652.7,0.1884]
[1647003171358,0.06083455,2653.3,2652.6,0.6]
[1647003171660,0.00326506,2653.4,2652.6,0.3]
[1647003171661,0.0566356,2653.1,2652.6,0.3]
[1647003171859,0.00326506,2653.2,2652.6,0.3]
[1647003172055,1.55818537,2653.2,2652.7,1.8845]
[1647003172256,0.05677981,2653.1,2652.7,1.8845]
[1647003172656,0.461,2653.4,2652.7,1.8845]
[1647003172657,0.05548117,2653.3,2652.7,1.8845]
[1647003172858,0.06005058,2653.1,2652.7,1.8845]
[1647003173076,0.00326506,2653.0,2652.7,1.8845]
[1647003173877,0.61722786,2653.4,2652.7,1.8845]
[1647003173878,1.55489892,2653.1,2652.7,1.8845]
[1647003174079,0.61722786,2653.4,2652.7,1.8845]
[1647003174080,1.55489892,2653.0,2652.7,1.8845]
[1647003174286,1.55489892,2652.9,2652.7,1.8845]
[1647003174482,0.00326506,2653.0,2652.7,1.8845]
[1647003175084,1.55495779,2653.1,2652.7,1.8845]
[1647003175284,1.55495779,2653.0,2652.7,1.8845]
[1647003175485,0.00326506,2653.0,2652.7,1.8845]
[1647003176283,0.0615462,2653.0,2652.7,1.8845]
[1647003176482,1.55494953,2652.9,2652.7,1.8845]
[1647003176729,0.05676652,2652.8,2652.7,1.8845]
[1647003176931,0.00326506,2653.0,2652.7,1.8845]
[1647003177532,1.55494338,2653.3,2652.7,1.8845]
[1647003177733,0.00326506,2653.0,2652.7,1.8845]
[1647003178334,0.97550065,2653.0,2652.7,1.8845]
[1647003178534,0.00326506,2653.0,2652.7,2.4498529]
[1647003178735,1.61079024,2653.2,2652.7,2.4498529]
[1647003178934,0.05598409,2653.2,2652.8,0.1884]
[1647003179133,0.00326506,2653.0,2652.8,0.1884]
[1647003179334,0.00326506,2653.0,2652.8,2.07254]
[1647003179538,0.00326506,2653.0,2652.8,3.5799272]
[1647003179733,0.00326506,2653.0,2652.8,3.94730979]
[1647003179935,0.05452021,2653.7,2652.8,2.37254]
[1647003180135,0.05452021,2653.7,2652.8,0.94227]
[1647003180334,0.05452021,2653.7,2653.1,1.10452985]
[1647003180876,1.74312313,2653.8,2653.1,1.10452985]
[1647003180877,0.04919424,2653.5,2653.1,1.10452985]
[1647003181083,1.55472313,2653.4,2653.1,1.10452985]
[1647003181275,0.05165933,2653.3,2653.0,0.3]
[1647003181479,0.05165933,2653.3,2652.8,0.94222]
[1647003181678,1.55481058,2653.2,2652.8,0.94222]
[1647003181879,1.55481058,2653.2,2652.8,1.24222]
[1647003182278,1.55481058,2653.2,2652.9,1.17111949]
[1647003182487,0.05174845,2653.7,2653.0,2.4495767]
[1647003182680,3.09542044,2654.0,2653.0,2.4495767]
[1647003182681,0.00326706,2653.1,2653.0,2.4495767]
[1647003183484,1.55469253,2653.3,2653.0,2.4495767]
[1647003183881,0.00326706,2653.2,2653.0,1.88428]
[1647003184332,0.00326706,2653.2,2652.8,1.24222]
[1647003184533,0.05983782,2653.2,2652.8,1.24222]
[1647003184736,1.55469253,2653.1,2652.8,0.94222]
[1647003184931,1.88602321,2653.7,2652.8,1.24222]
[1647003184932,0.05271766,2653.3,2652.8,1.24222]
[1647003185134,0.00326706,2653.2,2652.9,0.5653488]
[1647003186033,0.00534277,2653.7,2653.0,0.94215]
[1647003186234,0.00534277,2653.7,2652.9,0.3]
[1647003186235,0.00326706,2653.2,2652.9,0.3]
[1647003186434,0.00326706,2653.2,2652.8,1.24222]
[1647003186834,1.55467883,2653.3,2652.8,1.24222]
[1647003187034,0.05958224,2653.1,2652.8,1.24222]
[1647003187240,0.05958224,2653.1,2652.8,0.94222]
[1647003187435,0.05051072,2653.6,2652.8,1.24222]
[1647003187636,1.55470474,2653.5,2652.9,0.4711191]
[1647003187835,0.05397665,2653.4,2652.9,0.4711191]
[1647003188088,1.55470474,2653.3,2652.9,0.4711191]
[1647003188288,1.55470474,2653.2,2652.8,1.24222]
[1647003188486,1.55470474,2653.1,2652.8,0.94222]
[1647003188786,0.06088177,2653.4,2652.7,0.94233]
[1647003188787,5.05470474,2653.0,2652.7,0.94233]
[1647003188989,2.46397929,2652.9,2652.5,0.9422894]
[1647003189188,1.61462966,2652.8,2652.2,3.2550819]
[1647003189389,0.8532509,2652.9,2652.2,0.9423819]
[1647003189390,1.61882245,2652.7,2652.2,0.9423819]
[1647003189590,1.55470474,2652.6,2652.2,0.9423819]
[1647003189993,1.55470474,2652.6,2652.2,1.2423819]
[1647003190194,0.05049918,2652.5,2652.2,0.9423819]
[1647003190493,0.05584851,2652.3,2651.8,7.3]
[1647003190693,3.5,2652.9,2651.5,2.157627]
[1647003190694,0.05457782,2652.1,2651.5,2.157627]
[1647003190896,0.461,2652.5,2651.5,2.157627]
[1647003190897,0.06265223,2652.4,2651.5,0.942627]
[1647003191096,0.1712,2652.2,2651.5,0.942627]
[1647003191294,0.93485266,2652.0,2651.3,9.565]
[1647003191502,2.06860859,2651.9,2651.0,7.55]
[1647003191736,2.06860859,2651.9,2651.0,7.3]
[1647003191737,5.11532288,2651.8,2651.0,7.3]
[1647003191940,2.07715865,2651.7,2651.0,7.3]
[1647003192142,5.11393984,2651.6,2651.0,7.3]
[1647003192344,2.07636999,2651.5,2651.1,0.02106689]
[1647003192539,0.04948985,2651.4,2651.1,0.02106689]
[1647003192941,0.461,2651.3,2651.1,0.02106689]
[1647003193142,3.75313129,2651.2,2650.6,0.00213996]
[1647003193447,0.05101624,2651.0,2650.4,0.25]
[1647003193640,0.05101624,2651.0,2650.7,0.02106948]
[1647003193641,0.461,2650.9,2650.7,0.02106948]
[1647003193841,0.98539423,2650.8,2650.7,0.02106948]
[1647003194041,1.44639423,2650.8,2650.7,0.02106948]
[1647003194444,1.39049524,2650.8,2650.2,7.3]
[1647003194645,0.05707948,2650.7,2650.6,0.00526739]
[1647003194951,0.51807948,2650.7,2650.6,0.00526739]
[1647003195588,0.51807948,2650.7,2649.8,0.00213996]
[1647003195785,0.05505292,2650.6,2649.8,0.9431513]
[1647003196088,0.51516006,2651.1,2650.5,0.00526755]
[1647003196286,0.05502586,2651.0,2650.6,0.90607077]
[1647003197090,0.05502586,2651.0,2650.7,0.00526239]
[1647003197495,0.3876,2651.3,2650.8,5.0]
[1647003198091,2.97515833,2651.7,2651.4,1.03402173]
[1647003198293,0.00454319,2651.9,2651.4,1.97660173]
[1647003198691,0.00454319,2651.9,2651.4,2.27660173]
[1647003199338,0.00454319,2651.9,2651.4,1.33402173]
[1647003199540,0.00454319,2651.9,2651.5,0.00515238]
[1647003200439,0.00454319,2651.9,2651.4,1.50535153]
[1647003200642,0.00454319,2651.9,2651.6,0.00485194]
[1647003201642,0.00454319,2651.9,2651.5,1.24253]
[1647003201848,0.00454319,2651.9,2651.6,0.47613256]
[1647003202442,0.00454319,2651.9,2651.6,0.00485186]
[1647003202841,0.00454319,2651.9,2651.5,1.2425388]
[1647003203079,0.00454319,2651.9,2651.6,0.0049605]
[1647003204084,0.00454319,2651.9,2651.4,1.03402173]
[1647003204282,0.00454319,2651.9,2651.6,0.00526577]
[1647003204784,0.04681183,2651.9,2651.6,0.00526577]
[1647003205191,0.04681183,2651.9,2650.8,8.31769726]
[1647003205386,0.04681183,2651.9,2651.1,0.4713959]
[1647003207043,0.00454319,2651.9,2651.1,0.4713959]
[1647003207241,0.00454319,2651.9,2651.3,0.4713625]
[1647003207442,0.04836787,2651.9,2651.3,0.4713625]
[1647003207843,0.04836787,2651.9,2651.4,0.00526132]
[1647003208245,0.04836787,2651.9,2651.3,0.47039986]
[1647003208546,0.04836787,2651.9,2651.0,0.02104845]
[1647003208547,0.04320924,2651.7,2651.0,0.02104845]
[1647003208745,0.461,2651.6,2650.8,7.30442962]
[1647003208945,0.24069063,2651.9,2650.8,0.00442962]
[1647003208946,0.04622019,2651.4,2650.8,0.00442962]
[1647003209948,0.98927019,2651.4,2650.8,0.00442962]
[1647003210149,0.98927019,2651.4,2650.6,0.25]
[1647003210150,0.04758784,2651.3,2650.6,0.25]
[1647003210357,0.04758784,2651.3,2650.4,0.3]
[1647003210358,0.50858784,2651.3,2650.4,0.3]
[1647003210578,0.50858784,2651.3,2650.3,7.3]
[1647003210579,3.54172435,2651.2,2650.3,7.3]
[1647003210778,1.0,2651.0,2650.3,7.3]
[1647003210980,0.86659641,2650.7,2650.3,7.3]
[1647003211183,0.04528462,2650.6,2650.3,7.3]
[1647003212183,0.5109745,2650.9,2650.3,7.3]
[1647003212395,0.05436718,2650.8,2650.3,7.3]
[1647003212684,0.05436718,2650.8,2650.3,7.30526302]
[1647003213285,0.05436718,2650.8,2650.6,1.05238609]
[1647003213489,2.0,2651.0,2650.6,1.05238609]
[1647003213686,1.0,2651.0,2650.6,1.05238609]
[1647003214540,0.04760776,2651.4,2650.6,1.05238609]
[1647003214742,1.04760776,2651.4,2650.5,0.3]
[1647003214942,0.05333339,2651.3,2650.5,0.3]
[1647003215145,0.51433339,2651.3,2650.7,0.00526245]
[1647003215460,3.54495187,2651.2,2650.7,0.00526245]
[1647003215647,0.04354042,2651.1,2650.7,0.00526245]
[1647003216047,0.04491577,2650.9,2650.7,0.00526245]
[1647003216245,0.04491577,2650.9,2650.2,0.98082819]
[1647003216447,0.04491577,2650.9,2650.8,0.00526221]
[1647003217146,0.04491577,2650.9,2650.3,7.3]
[1647003217348,0.04351306,2650.8,2650.3,7.3]
[1647003218485,0.04351306,2650.8,2650.3,7.6]
[1647003218686,0.461,2650.9,2650.3,7.6]
[1647003219088,0.461,2650.9,2650.3,8.54305]
[1647003219289,0.04552364,2651.0,2650.3,8.84305]
[1647003219490,2.0,2651.4,2650.3,9.21995]
[1647003219789,1.04164785,2651.4,2650.5,0.0859517]
[1647003220187,0.99469122,2651.3,2650.5,0.0859517]
[1647003220389,0.99469122,2651.3,2650.5,0.5574681]
[1647003220596,0.05166122,2651.3,2650.5,0.0859517]
[1647003221089,0.05166122,2651.3,2650.8,0.00525738]
[1647003221936,0.05166122,2651.3,2650.5,1.3289517]
[1647003222138,0.05166122,2651.3,2650.5,0.3]
[1647003222338,0.05166122,2651.3,2650.9,0.00525713]
[1647003222339,0.6495,2651.3,2650.9,0.00525713]
[1647003222537,0.04459519,2651.2,2650.9,0.00525713]
[1647003224138,0.98767519,2651.2,2650.9,0.00525713]
[1647003224439,0.98767519,2651.2,2650.4,0.00213996]
[1647003224440,0.04563696,2651.1,2650.4,0.00213996]
[1647003224657,0.04563696,2651.1,2650.9,0.00525713]
[1647003225497,0.22995222,2651.3,2650.9,0.00525713]
[1647003225697,0.22995222,2651.3,2650.4,1.0321023]
[1647003225895,0.04145222,2651.3,2650.9,0.00498687]
[1647003226297,0.05414627,2651.5,2650.9,0.00498687]
[1647003226895,0.94297,2651.5,2650.5,0.00213996]
[1647003227097,0.05423303,2651.4,2651.1,0.00498656]
[1647003228099,0.05423303,2651.4,2650.5,0.08670665]
[1647003228302,0.94297,2651.5,2651.1,0.00498648]
[1647003229340,0.94297,2651.5,2650.8,0.0821484]
[1647003229542,0.1885,2651.4,2651.2,0.00488148]
[1647003229941,2.14658434,2651.7,2651.2,0.00488148]
[1647003230141,1.150997,2651.7,2651.2,0.00488148]
[1647003230347,0.150997,2651.7,2651.3,0.4713819]
[1647003230541,0.00454319,2651.9,2651.4,0.08800584]
[1647003230743,0.00454319,2651.9,2651.4,1.16309136]
[1647003230948,0.00454319,2651.9,2651.4,0.08800584]
[1647003231142,0.00454319,2651.9,2651.4,0.38800584]
[1647003231442,0.00454319,2651.9,2651.4,0.08800584]
[1647003231842,0.00330927,2651.9,2651.4,0.08800584]
[1647003233588,1.55869003,2651.9,2651.4,0.08800584]
[1647003233884,0.00330927,2651.9,2651.4,0.08800584]
[1647003235090,0.00330927,2651.9,2651.4,0.38800584]
[1647003235292,0.00330927,2651.9,2651.4,0.67098234]
[1647003236293,0.00330927,2651.9,2651.5,0.4713425]
[1647003236491,0.00330927,2651.9,2651.4,0.37098234]
[1647003238153,0.00330927,2651.9,2651.4,0.67098234]
[1647003239454,0.00330927,2651.9,2651.4,0.5829765]
[1647003239653,0.00330927,2651.9,2651.5,0.08833864]
[1647003242190,0.04710935,2651.9,2651.4,0.2829765]
[1647003242389,1.55516939,2651.8,2651.4,0.2829765]
[1647003242888,0.04710935,2651.9,2651.4,0.2829765]
[1647003243489,0.04710935,2651.9,2651.4,1.2256765]
[1647003243490,0.00330927,2651.9,2651.4,1.2256765]
[1647003243688,0.00330927,2651.9,2651.4,1.8256765]
[1647003243894,0.00330927,2651.9,2651.4,0.8829765]
[1647003244235,0.00330927,2651.9,2651.5,0.07996268]
[1647003245043,0.00330927,2651.9,2651.5,1.02263268]
[1647003245240,0.00330927,2651.9,2651.5,1.49396298]
[1647003245440,0.00330927,2651.9,2651.5,1.79396298]
[1647003246240,0.00330927,2651.9,2651.5,1.78684602]
[1647003247042,1.55509767,2652.2,2651.5,1.78684602]
[1647003248383,1.55509767,2652.2,2651.6,0.3]
[1647003248588,1.55509767,2652.2,2651.7,0.94265]
[1647003248790,1.55509767,2652.2,2651.7,1.24265]
[1647003248993,1.55509767,2652.2,2651.7,0.3]
[1647003249691,1.55509767,2652.2,2651.7,0.94272]
[1647003250291,1.55509767,2652.2,2651.6,0.3]
[1647003250691,1.55509767,2652.2,2651.5,1.32270268]
[1647003251090,1.55509767,2652.2,2651.5,1.62270268]
[1647003252939,2.49788767,2652.2,2651.5,1.62270268]
[1647003253138,1.55509767,2652.1,2651.5,1.62270268]
[1647003254745,0.90793447,2651.9,2651.5,1.32270268]
[1647003254942,0.90793447,2651.9,2651.5,0.3]
[1647003255143,1.55509767,2651.8,2651.4,0.2829765]
[1647003257392,7.31982767,2651.8,2651.4,0.2829765]
[1647003257595,7.31982767,2651.8,2651.1,0.09115299]
[1647003257596,0.56106997,2651.3,2651.1,0.01953359]
[1647003257792,1.55509767,2651.2,2651.1,0.01953359]
[1647003257993,1.60748359,2651.2,2651.1,0.01953359]
[1647003258197,2.06848359,2651.2,2651.1,0.01953359]
[1647003258391,2.06848359,2651.2,2650.6,0.25]
[1647003258595,1.55509767,2651.1,2650.3,8.44503996]
[1647003258793,1.04595408,2650.8,2650.3,7.3]
[1647003258992,0.94322,2650.9,2650.3,7.3]
[1647003259440,0.04157224,2650.8,2650.3,7.3]
[1647003259636,0.04222604,2651.0,2650.3,7.3]
[1647003259836,0.461,2650.8,2650.3,7.3]
[1647003260040,0.04754769,2650.7,2650.3,7.3]
[1647003260537,0.99086769,2650.7,2650.3,7.3]
[1647003261537,1.93287266,2650.7,2650.3,7.3]
[1647003261942,1.93287266,2650.7,2650.4,0.00525339]
[1647003262741,1.93287266,2650.7,2650.4,0.04065029]
[1647003262984,1.93287266,2650.7,2650.4,0.043874]
[1647003263188,1.93287266,2650.7,2650.4,0.04912731]
[1647003263189,2.01679978,2650.6,2650.4,0.04912731]
[1647003263385,2.68787978,2650.5,2650.4,0.04912731]
[1647003263585,3.45887978,2650.5,2650.4,0.04912731]
[1647003263785,0.04968598,2650.3,2650.2,0.0111745]
[1647003263986,0.51068598,2650.3,2650.2,0.0111745]
[1647003264188,2.06648576,2650.3,2650.2,0.0111745]
[1647003264593,3.06648576,2650.3,2650.2,0.0111745]
[1647003264992,0.0531006,2650.3,2650.2,0.0111745]
[1647003265190,2.07003543,2650.3,2650.2,0.0111745]
[1647003265391,7.5,2650.2,2650.0,0.66525987]
[1647003265591,5.51693483,2650.1,2650.0,0.00774]
[1647003265792,2.02693483,2650.1,2650.0,0.00774]
[1647003265989,2.21553483,2650.1,2650.0,0.00774]
[1647003266192,2.51553483,2650.1,2650.0,0.00774]
[1647003266592,3.51553483,2650.1,2650.0,0.00774]
[1647003266834,10.01553483,2650.1,2650.0,4e-05]
[1647003267038,10.01553483,2650.1,2649.9,0.00528152]
[1647003267039,7.5,2650.0,2649.9,0.00528152]
[1647003267250,0.0225,2649.8,2648.5,7.40143902]
[1647003267443,12.70563483,2649.7,2649.2,0.0138117]
[1647003267644,0.94392,2649.4,2649.2,0.0138117]
[1647003267843,0.461,2649.3,2649.2,0.0138117]
[1647003269046,0.471,2649.3,2649.2,0.0138117]
[1647003269242,0.461,2649.3,2649.2,0.0138117]
[1647003271397,0.94365,2649.6,2649.2,0.0138117]
[1647003271596,0.00334803,2649.7,2649.3,0.94355]
[1647003272597,0.94363,2649.6,2649.2,2.28687252]
[1647003272797,0.94363,2649.6,2649.4,0.00525305]
[1647003273799,2.3483889,2649.6,2649.2,0.0138117]
[1647003274097,2.3483889,2649.6,2649.4,0.00525305]
[1647003274944,2.3483889,2649.6,2649.2,0.08713461]
[1647003275141,2.3483889,2649.6,2649.4,0.00525305]
[1647003276142,2.3483889,2649.6,2649.2,0.08713461]
[1647003276342,2.3483889,2649.6,2649.4,0.00485998]
[1647003277142,1.0,2649.5,2649.4,0.00485998]
[1647003277343,1.461,2649.5,2649.2,1.03095461]
[1647003277548,1.461,2649.5,2649.0,0.0171484]
[1647003277549,0.31286004,2649.1,2649.0,0.0171484]
[1647003278286,0.77386004,2649.1,2649.0,0.0171484]
[1647003278487,1.71770004,2649.1,2649.0,0.0171484]
[1647003278688,2.71770004,2649.1,2649.0,0.0171484]
[1647003279089,4.63222842,2649.1,2649.0,0.0171484]
[1647003279491,7.5,2649.0,2648.9,0.0058288]
[1647003279694,7.5,2649.0,2647.8,1.25195735]
[1647003279695,7.5,2648.6,2647.8,1.25195735]
[1647003279893,7.5,2648.6,2647.3,0.5128832]
[1647003279894,3.0,2647.9,2647.6,0.02017232]
[1647003280100,0.01249702,2648.3,2647.3,0.0128832]
[1647003280101,3.0,2647.7,2647.3,0.0128832]
[1647003280293,3.0,2647.7,2647.2,0.017637]
[1647003280294,0.04808037,2647.4,2647.2,0.017637]
[1647003280493,0.6497,2647.3,2647.2,0.017637]
[1647003280791,0.9597,2647.3,2647.1,0.0030804]
[1647003280994,0.04686935,2647.2,2647.1,0.0030804]
[1647003281194,0.05686935,2647.2,2647.1,0.0082828]
[1647003282048,0.99148935,2647.2,2647.1,0.0082828]
[1647003282246,0.99148935,2647.2,2647.1,0.0030804]
[1647003282448,1.00148935,2647.2,2647.1,0.0030804]
[1647003283244,3.65182445,2647.2,2647.1,0.0030804]
[1647003283446,3.6049551,2647.2,2647.1,0.0030804]
[1647003283647,4.6049551,2647.2,2647.1,0.0030804]
[1647003283847,7.1602633,2647.2,2647.1,0.0030804]
[1647003284046,6.0,2647.1,2647.0,3.58199059]
[1647003284245,6.0,2647.1,2647.0,3.49921421]
[1647003284246,11.271,2647.1,2647.0,3.49921421]
[1647003284447,0.0086,2646.9,2646.7,2.672e-05]
[1647003284649,0.0086,2646.9,2646.7,0.01837408]
[1647003284650,0.6499,2646.8,2646.7,0.01837408]
[1647003284847,0.6499,2646.8,2646.5,0.01699666]
[1647003284848,0.9238281,2646.7,2646.5,0.01699666]
[1647003285048,4.5450836,2646.6,2645.9,0.04164438]
[1647003285251,4.5450836,2646.6,2645.9,0.0395067]
[1647003285252,3.5,2646.5,2645.9,0.0395067]
[1647003285496,3.5,2646.5,2645.4,5.429044]
[1647003285497,2.95,2646.1,2645.4,5.429044]
[1647003285697,0.66211746,2646.4,2645.4,0.01704424]
[1647003285698,4.961,2646.0,2645.4,0.01704424]
[1647003285894,0.461,2645.9,2645.4,0.01704424]
[1647003286294,1.4062976,2645.9,2645.4,0.01704424]
[1647003286497,0.461,2645.9,2645.4,0.01709424]
[1647003286696,1.0,2646.0,2645.4,0.01709424]
[1647003286895,0.461,2646.3,2645.4,0.01709424]
[1647003287197,0.94491,2646.0,2645.4,0.01709424]
[1647003287598,0.94491,2646.0,2645.5,1.88986]
[1647003288401,0.94485,2646.3,2645.6,0.00525504]
[1647003288602,0.94485,2646.3,2645.6,0.02229928]
[1647003289000,0.96371487,2646.3,2645.9,1.0082908]
[1647003289244,0.96371487,2646.3,2645.9,1.9531308]
[1647003289443,0.96371487,2646.3,2645.9,2.2531308]
[1647003289642,0.96371487,2646.3,2645.9,2.259008]
[1647003290644,0.96371487,2646.3,2646.0,0.3]
[1647003290645,6.487e-05,2646.3,2646.0,0.3]
[1647003290844,6.487e-05,2646.3,2646.0,2.57144448]
[1647003291049,6.487e-05,2646.3,2646.1,0.19393037]
[1647003291645,0.9504884,2646.9,2646.3,0.3769]
[1647003291847,0.1889,2647.8,2646.6,0.3769]
[1647003292050,0.1889,2647.8,2646.8,0.45324833]
[1647003292349,1.51430194,2648.1,2646.9,0.01802763]
[1647003292552,1.51430194,2648.1,2646.9,0.09810528]
[1647003293005,1.51430194,2648.1,2647.4,0.85601812]
[1647003293192,1.51430194,2648.1,2647.3,0.3]
[1647003293193,4.44424,2648.0,2647.3,0.3]
[1647003293394,0.1887,2647.9,2647.3,0.3]
[1647003293593,0.461,2647.8,2646.9,0.02015668]
[1647003293793,0.1887,2647.7,2646.9,0.01802763]
[1647003294092,0.1887,2647.7,2646.9,0.09285262]
[1647003294292,0.1887,2647.7,2646.9,1.4651299]
[1647003294497,0.94443,2647.5,2647.1,1.88875]
[1647003294694,1.13313,2647.5,2647.2,0.08415087]
[1647003295693,1.13417011,2647.5,2647.2,0.08415087]
[1647003296292,1.13417011,2647.5,2647.2,0.07415087]
[1647003296494,1.13313,2647.5,2647.1,1.88875]
[1647003296945,1.13313,2647.5,2646.9,0.94436]
[1647003296946,0.461,2647.4,2646.9,0.94436]
[1647003297146,0.461,2647.4,2646.7,1.8891]
[1647003297147,2.49191265,2647.0,2646.7,1.8891]
[1647003297344,2.49191265,2647.0,2646.4,0.07219642]
[1647003297345,1.5946,2646.9,2646.4,0.07432547]
[1647003297544,1.5946,2646.9,2646.4,0.07219642]
[1647003297745,1.5946,2646.9,2646.1,4.41072549]
[1647003297746,0.05693681,2646.8,2646.1,4.41072549]
[1647003297944,0.05693681,2646.8,2646.3,0.82600984]
[1647003298148,0.0579743,2646.8,2646.4,1.88922]
[1647003298344,0.00103749,2646.8,2646.4,1.88922]
[1647003298946,3.49191265,2647.0,2646.4,1.88922]
[1647003299146,2.49191265,2647.0,2646.4,1.88922]
[1647003299347,2.49191265,2647.0,2646.5,0.3]
[1647003299549,2.49191265,2647.0,2646.6,0.05645778]
[1647003299846,2.49191265,2647.0,2646.9,1.08311825]
[1647003300502,2.49191265,2647.0,2646.9,1.82065746]
[1647003300697,2.49191265,2647.0,2646.9,1.76001825]
[1647003302896,0.01934464,2647.4,2647.0,6.8769]
[1647003302897,7.149e-05,2647.1,2647.0,6.8769]
[1647003303096,0.01934464,2647.4,2647.2,0.3769]
[1647003303301,0.01934464,2647.4,2647.2,0.6769]
[1647003303896,0.01934464,2647.4,2647.3,1.44796772]
[1647003304538,0.01934464,2647.4,2647.3,12.92796772]
[1647003304740,1.32560194,2648.1,2647.5,0.3769]
[1647003305146,1.32560194,2648.1,2647.5,0.6769]
[1647003305541,1.32560194,2648.1,2647.6,0.3769]
[1647003305742,1.0,2648.6,2647.9,0.3769]
[1647003305946,1.0,2648.6,2647.7,1.88773]
[1647003306143,1.0,2648.6,2647.8,0.3]
[1647003306341,1.0,2648.6,2647.7,1.88773]
[1647003306342,0.06470579,2648.5,2647.7,2.18773]
[1647003306541,0.25340579,2648.5,2647.7,2.18773]
[1647003306741,0.94409,2648.3,2647.9,0.94387]
[1647003307248,3.5,2648.2,2647.9,0.94387]
[1647003307443,0.06507709,2648.1,2647.9,0.94387]
[1647003308311,1.01386665,2648.0,2647.9,0.94387]
[1647003308811,3.57115471,2648.0,2647.9,0.94387]
[1647003309011,3.20698806,2648.0,2647.9,0.94387]
[1647003309213,2.6497,2648.0,2647.9,0.94387]
[1647003309415,3.01829626,2648.0,2647.9,0.94387]
[1647003309616,4.01829626,2648.0,2647.9,0.94387]
[1647003309816,4.01828552,2648.0,2647.9,0.94387]
[1647003311226,4.31828552,2648.0,2647.9,0.94387]
[1647003311420,0.94436,2647.9,2647.7,1.88773]
[1647003311619,1.74598552,2647.8,2647.7,1.88773]
[1647003312054,1.0,2647.9,2647.7,1.88773]
[1647003312251,0.461,2648.1,2647.7,1.88773]
[1647003312452,0.00281442,2647.9,2647.7,1.88773]
[1647003313060,0.46381442,2647.9,2647.7,1.88773]
[1647003313455,0.461,2647.9,2647.7,1.88773]
[1647003313962,0.461,2647.9,2647.8,1.05174711]
[1647003314154,1.0,2648.2,2647.9,1.88819]
[1647003314554,0.461,2648.3,2647.9,1.88819]
[1647003314955,0.00084432,2648.2,2647.9,1.88819]
[1647003315694,1.55691662,2648.5,2647.9,1.88819]
[1647003315895,2.01791662,2648.5,2647.9,1.88819]
[1647003316095,0.00098287,2648.2,2647.9,1.88819]
[1647003316995,1.55691662,2648.4,2647.9,1.88819]
[1647003317397,0.00327624,2648.2,2647.9,1.88819]
[1647003317598,0.00327624,2648.2,2648.0,2.78362157]
[1647003317797,0.00327624,2648.2,2648.0,0.3]
[1647003318198,0.00327624,2648.2,2647.9,2.18819]
[1647003318797,0.00327624,2648.2,2648.1,0.90227965]
[1647003319002,0.00327624,2648.2,2648.0,1.88791]
[1647003319244,0.00327624,2648.2,2648.0,2.18791]
[1647003319449,0.05865672,2648.7,2648.0,2.18791]
[1647003319650,1.55657562,2648.6,2648.0,2.18791]
[1647003319851,0.00327624,2648.2,2648.0,2.18791]
[1647003320050,0.00327624,2648.2,2648.0,5.68791]
[1647003320250,0.00327624,2648.2,2648.1,3.5]
[1647003320450,0.00327624,2648.2,2648.1,3.8]
[1647003320654,0.0162479,2648.8,2648.2,5.56043946]
[1647003320855,0.0162479,2648.8,2648.3,3.5]
[1647003321052,0.31286004,2649.1,2648.5,3.5]
[1647003321254,0.31286004,2649.1,2648.6,3.5]
[1647003321655,0.31286004,2649.1,2648.6,3.8]
[1647003321854,0.31286004,2649.1,2648.6,0.3]
[1647003322051,0.31286004,2649.1,2648.8,0.82310262]
[1647003322252,1.55627832,2649.0,2648.8,1.76681262]
[1647003322653,0.31286004,2649.1,2648.8,2.06681262]
[1647003322852,1.55623794,2649.0,2648.8,2.06681262]
[1647003323491,0.31286004,2649.1,2648.8,2.06681262]
[1647003323897,0.07042221,2649.0,2648.8,1.24371]
[1647003324099,0.69228044,2649.5,2648.8,1.24371]
[1647003324297,0.05962833,2649.4,2648.8,1.24371]
[1647003324494,0.00104186,2649.1,2648.8,1.24371]
[1647003324696,0.24832833,2649.4,2648.8,1.24371]
[1647003325096,0.05962833,2649.4,2648.8,1.24371]
[1647003325596,1.00333833,2649.4,2648.8,1.24371]
[1647003325798,0.23691566,2649.5,2648.8,1.24371]
[1647003326399,2.12444566,2649.5,2648.8,0.94371]
[1647003326603,2.8167261,2649.5,2648.8,0.94371]
[1647003326846,2.58544566,2649.5,2648.8,0.94371]
[1647003327042,0.94371,2649.4,2648.8,0.94371]
[1647003327442,0.94371,2649.4,2648.8,1.24371]
[1647003327842,0.92301,2649.4,2648.8,1.24371]
[1647003328043,3.58544566,2649.5,2648.8,1.24371]
[1647003328044,0.94384,2649.2,2648.8,1.24371]
[1647003328844,1.40484,2649.2,2648.8,1.24371]
[1647003329450,1.89125402,2649.1,2648.8,1.24371]
[1647003330147,1.8878,2649.1,2648.8,1.24371]